bitfinex/quotes_SOLUSD_20260305
["timestamp","ask_amount","ask_price","bid_price","bid_amount"]
[1772681346217,1.53603549,90.067,90.024,0.50805968]
[1772681346726,1.53603549,90.067,90.023,11.10827233]
[1772681347329,55.50649103,90.08,90.023,0.50945913]
[1772681347330,1.53603549,90.065,90.023,0.50945913]
[1772681347649,1.53603549,90.065,90.02,0.1]
[1772681349532,38.86039126,90.066,90.01,0.1]
[1772681349533,1.53603549,90.059,90.01,0.1]
[1772681350332,1.53603549,90.059,90.011,11.10975325]
[1772681352030,1.53603549,90.057,90.012,0.8978217]
[1772681353431,1.53603549,90.057,90.01,0.1]
[1772681354430,1.53603549,90.055,90.01,0.1]
[1772681356031,1.53603549,90.053,90.01,0.1]
[1772681357134,1.53603549,90.053,90.01,1.00555279]
[1772681358619,1.56603449,90.051,90.012,0.90855422]
[1772681359041,38.86643272,90.052,90.012,0.90855422]
[1772681359042,11.10469506,90.052,90.012,0.90855422]
[1772681359939,1.56603449,90.051,90.012,0.90855422]
[1772681361435,1.56603449,90.049,90.013,11.1095064]
[1772681362027,1.56603449,90.049,90.014,0.91430234]
[1772681362730,1.56603449,90.092,90.017,0.91430234]
[1772681363138,1.56603449,90.082,90.017,0.91430234]
[1772681364123,1.56603449,90.08,90.021,3.69383402]
[1772681364330,1.56603449,90.08,90.022,0.91898554]
[1772681366850,1.5008102,90.078,90.026,3.69383402]
[1772681367042,1.5008102,90.078,90.027,0.92420628]
[1772681369050,1.5008102,90.076,90.029,0.92674911]
[1772681371244,1.5008102,90.074,90.031,0.92925014]
[1772681374830,1.5008102,90.072,90.032,38.87506663]
[1772681375036,1.5008102,90.072,90.033,0.93411948]
[1772681375244,1.5008102,90.079,90.036,0.93411948]
[1772681378643,1.5008102,90.077,90.038,0.93754945]
[1772681383157,1.5008102,90.077,90.04,0.93689086]
[1772681384249,1.5008102,90.092,90.043,0.93856646]
[1772681385255,1.5008102,90.092,90.048,0.93839278]
[1772681385844,10.6814612,90.093,90.048,0.93839278]
[1772681387053,12.1822714,90.093,90.048,0.93839278]
[1772681387251,1.5008102,90.092,90.048,0.93839278]
[1772681387455,10.6814612,90.093,90.053,0.937993]
[1772681387644,12.1822714,90.093,90.053,0.937993]
[1772681387960,1.5008102,90.091,90.037,11.10654508]
[1772681388160,1.5008102,90.089,90.041,0.93966501]
[1772681390062,1.49592731,90.087,90.043,0.93731542]
[1772681392764,1.49592731,90.085,90.043,0.93731542]
[1772681393968,1.49592731,90.085,90.045,0.94027943]
[1772681394263,1.49592731,90.092,90.047,3.69383402]
[1772681394446,1.49592731,90.091,90.048,0.94027943]
[1772681395344,1.49592731,90.089,90.049,11.10506502]
[1772681395847,1.49592731,90.089,90.049,12.04702666]
[1772681396051,1.49592731,90.089,90.05,0.94173018]
[1772681397650,1.49592731,90.087,90.051,11.10481838]
[1772681397853,1.49592731,90.087,90.053,0.94153079]
[1772681400363,10.6814612,90.093,90.055,0.93908941]
[1772681400557,1.49592731,90.092,90.055,0.93908941]
[1772681400747,1.49592731,90.091,90.055,0.93908941]
[1772681400943,1.49592731,90.091,90.054,38.86556954]
[1772681402061,1.49592731,90.091,90.054,11.10444844]
[1772681402447,1.49592731,90.089,90.05,11.10494169]
[1772681403261,1.49592731,90.089,90.017,44.43594814]
[1772681403262,1.49592731,90.089,90.034,11.10691516]
[1772681403663,1.49592731,90.089,90.035,0.93850164]
[1772681404045,1.49592731,90.079,90.024,11.10814893]
[1772681404244,1.49592731,90.079,89.986,12.04974767]
[1772681404245,1.49592731,90.069,90.022,12.04670602]
[1772681404471,1.49592731,90.067,90.025,0.9383103]
[1772681406480,1.49592731,90.065,90.027,0.93794077]
[1772681407353,1.49592731,90.071,90.027,0.93794077]
[1772681407549,1.49592731,90.071,90.03,0.9377601]
[1772681408750,1.49592731,90.071,90.032,0.93758051]
[1772681409163,11.91360437,90.088,90.04,0.93739858]
[1772681409467,1.49592731,90.087,90.042,0.93739858]
[1772681410252,1.49592731,90.086,90.042,0.93739858]
[1772681411056,1.49592731,90.084,90.043,11.105805]
[1772681411256,1.49592731,90.084,90.042,0.93739858]
[1772681411257,1.49592731,90.084,90.02,0.93529182]
[1772681411452,38.85219514,90.085,90.023,4.62912584]
[1772681411453,1.49592731,90.079,90.023,4.62912584]
[1772681411652,1.49592731,90.079,90.024,0.93529182]
[1772681416662,1.49592731,90.077,90.029,0.93457214]
[1772681418874,11.91360437,90.088,90.017,0.93600673]
[1772681418875,1.50786561,90.075,90.017,0.93600673]
[1772681419882,1.50786561,90.075,90.019,0.93585251]
[1772681422873,11.10198281,90.074,90.02,38.88024882]
[1772681423077,1.50786561,90.073,90.021,0.93522486]
[1772681425984,1.50786561,90.071,90.023,0.93482598]
[1772681428890,1.56454512,90.069,90.024,11.10814893]
[1772681429080,1.56454512,90.069,90.011,11.10975325]
[1772681429778,1.56454512,90.069,90.011,12.04405434]
[1772681429979,1.56454512,90.069,90.011,11.10975325]
[1772681430178,1.56454512,90.069,90.012,0.93419499]
[1772681430685,1.56454512,90.069,90.011,11.10975325]
[1772681430686,1.56454512,90.059,90.01,0.1]
[1772681430885,1.56454512,90.057,90.01,0.1]
[1772681432695,1.56454512,90.049,89.986,1.03396024]
[1772681432880,4.25828014,90.05,89.986,1.03396024]
[1772681432881,1.56454512,90.047,89.987,11.11262656]
[1772681433071,1.56454512,90.039,89.994,1.03391178]
[1772681433475,1.56454512,90.039,89.982,3.76259137]
[1772681434291,1.56454512,90.039,89.984,11.11301333]
[1772681434482,1.56454512,90.039,89.987,11.11271628]
[1772681434683,1.56454512,90.039,89.982,14.87581984]
[1772681434883,1.56454512,90.037,89.982,2.72867959]
[1772681435087,4.25828014,90.03,89.982,2.72867959]
[1772681435278,1.56454512,90.029,89.982,2.72867959]
[1772681436300,1.56454512,90.027,89.982,2.72867959]
[1772681438303,1.56454512,90.025,89.978,49.96]
[1772681438479,1.56454512,90.019,89.978,49.96]
[1772681439786,1.56454512,90.019,89.966,1.23064217]
[1772681440295,1.56454512,90.017,89.966,1.23064217]
[1772681441407,1.56454512,90.017,89.967,11.11518667]
[1772681441790,1.56454512,90.017,89.968,1.23093574]
[1772681442608,1.56454512,90.015,89.963,1.22818162]
[1772681443585,4.25828014,90.01,89.954,11.11676287]
[1772681443791,1.56454512,89.999,89.945,11.11788265]
[1772681444099,1.56454512,89.999,89.944,11.11794058]
[1772681444410,1.56454512,89.999,89.948,1.2245088]
[1772681444706,1.56454512,89.997,89.96,1.2245088]
[1772681445305,11.11135803,89.998,89.96,1.2245088]
[1772681445801,11.10913615,90.016,89.963,1.22185371]
[1772681446591,17.64385491,90.017,89.969,0.14216157]
[1772681447398,1.57724181,90.048,89.975,0.28432314]
[1772681447796,11.10446436,90.054,89.98,4.96693726]
[1772681447996,1.57724181,90.053,89.984,0.28432314]
[1772681448213,1.57724181,90.053,89.988,0.28432314]
[1772681448722,1.57724181,90.053,89.995,0.28432314]
[1772681449491,11.10446436,90.054,89.995,0.28432314]
[1772681449492,27.75624946,90.07,89.995,0.28432314]
[1772681449693,1.57724181,90.074,90.0,0.28432314]
[1772681450323,1.57724181,90.073,90.0,0.28432314]
[1772681450693,1.57724181,90.073,89.967,1.11151866]
[1772681450694,1.57724181,90.069,90.004,3.69383402]
[1772681451222,1.57724181,90.059,90.001,41.11098765]
[1772681451399,1.57724181,90.059,90.001,11.11098765]
[1772681453595,1.57724181,90.057,89.997,27.77856607]
[1772681456005,1.57724181,90.055,89.994,3.69383402]
[1772681456520,1.57724181,90.049,89.991,11.11222233]
[1772681457813,1.57724181,90.047,89.976,11.11407486]
[1772681458016,1.57724181,90.039,89.976,11.11407486]
[1772681458407,1.57724181,90.039,89.979,3.69383402]
[1772681460827,1.57724181,90.037,89.98,11.11358079]
[1772681461039,1.57724181,90.029,89.968,3.69383402]
[1772681461220,9.1383318,90.0,89.957,0.68322329]
[1772681461409,1.57724181,89.999,89.957,0.68322329]
[1772681462119,1.57724181,89.999,89.957,11.79959997]
[1772681462429,1.57724181,89.999,89.957,0.68322329]
[1772681462922,1.57724181,89.997,89.957,0.68322329]
[1772681465229,1.57724181,89.995,89.957,0.68322329]
[1772681465711,38.89061736,89.996,89.93,0.1]
[1772681465712,9.1383318,89.99,89.93,0.1]
[1772681465916,1.57724181,89.989,89.931,11.11963616]
[1772681466318,1.57724181,89.989,89.93,0.1]
[1772681466628,1.57724181,89.979,89.93,0.1]
[1772681467005,138.895062,89.996,89.93,0.1]
[1772681467006,1.57724181,89.969,89.93,0.1]
[1772681467224,1.57724181,89.967,89.93,0.1]
[1772681469223,1.57724181,89.965,89.93,0.1]
[1772681470014,1.57724181,89.959,89.93,0.1]
[1772681470238,38.90358579,89.966,89.92,0.1]
[1772681470239,1.52724181,89.949,89.92,0.1]
[1772681471326,1.52724181,89.947,89.92,0.1]
[1772681472808,1.52724181,89.947,89.9,49.98]
[1772681473008,94.49904387,89.948,89.882,0.05524016]
[1772681473009,1.52724181,89.939,89.882,0.05524016]
[1772681473431,3.41794726,89.96,89.882,0.05524016]
[1772681473432,1.52724181,89.937,89.882,0.05524016]
[1772681473933,1.52724181,89.958,89.922,0.05524016]
[1772681474319,11.11580445,89.962,89.922,0.05524016]
[1772681474629,10.99331673,89.963,89.922,0.05524016]
[1772681474828,3.41794726,90.01,89.898,8.80293285]
[1772681475029,1.55346394,89.989,89.898,8.80293285]
[1772681475257,1.55346394,89.989,89.907,8.80293285]
[1772681475432,11.11259279,89.988,89.912,8.80293285]
[1772681475731,12.66605673,89.988,89.912,8.80293285]
[1772681476113,12.66605673,89.988,89.918,0.28432314]
[1772681476310,11.11212316,89.992,89.925,3.69383402]
[1772681476518,11.11212316,89.992,89.922,5.10909883]
[1772681477026,11.11212316,89.992,89.924,0.28432314]
[1772681477229,11.11212316,89.992,89.928,0.28432314]
[1772681478111,11.11212316,89.992,89.928,30.28432314]
[1772681478315,11.11212316,89.992,89.932,3.97815716]
[1772681478834,12.6655871,89.992,89.932,3.97815716]
[1772681479029,1.55346394,89.991,89.932,3.97815716]
[1772681479338,1.55346394,89.991,89.937,0.28432314]
[1772681480629,1.55346394,89.989,89.942,0.28432314]
[1772681482333,8.79465338,89.999,89.942,0.28432314]
[1772681482525,11.11135803,89.998,89.942,0.28432314]
[1772681482753,1.55346394,89.997,89.947,0.28432314]
[1772681485141,1.55346394,89.995,89.95,3.69383402]
[1772681485432,1.55346394,89.995,89.947,11.11765817]
[1772681486237,1.55346394,89.989,89.914,0.14216157]
[1772681486537,1.55346394,89.979,89.917,30.0]
[1772681487334,9.14191866,89.98,89.917,3.69383402]
[1772681487335,38.89839738,89.978,89.917,3.69383402]
[1772681487537,1.55346394,89.977,89.917,3.69383402]
[1772681487840,1.55346394,89.977,89.9,7.03089577]
[1772681487841,1.55346394,89.949,89.901,11.12334679]
[1772681488033,1.55346394,89.949,89.901,38.93171377]
[1772681489219,1.55346394,89.949,89.9,7.03089577]
[1772681489428,1.55346394,89.947,89.9,7.03089577]
[1772681490127,1.55346394,89.947,89.901,11.12334679]
[1772681491237,27.79040706,89.96,89.904,3.69383402]
[1772681491238,11.11617514,89.959,89.904,3.69383402]
[1772681491421,1.55346394,89.956,89.908,3.69383402]
[1772681492128,11.11593911,89.961,89.909,0.28432314]
[1772681492532,1.55346394,89.96,89.909,0.28432314]
[1772681493937,1.55346394,89.96,89.913,3.69383402]
[1772681494122,11.11617514,89.959,89.911,0.28432314]
[1772681494325,6.87175455,89.974,89.914,0.28432314]
[1772681494530,6.87175455,89.974,89.92,5.10909883]
[1772681494941,6.87175455,89.974,89.92,0.28432314]
[1772681495147,6.87175455,89.974,89.919,0.28432314]
[1772681495637,6.87175455,89.974,89.921,0.28432314]
[1772681496054,6.87175455,89.974,89.926,0.28432314]
[1772681496643,6.87175455,89.974,89.93,0.28432314]
[1772681497228,1.55346394,89.995,89.93,0.28432314]
[1772681497943,1.55346394,89.995,89.926,0.28432314]
[1772681498244,1.55346394,89.993,89.931,3.97815716]
[1772681500139,1.55346394,89.991,89.936,0.28432314]
[1772681500342,1.55346394,89.991,89.932,38.91829382]
[1772681502251,1.55346394,89.989,89.932,27.7987813]
[1772681502543,1.55346394,89.989,89.924,11.12050175]
[1772681502755,9.14191866,89.98,89.924,11.12050175]
[1772681502961,1.55346394,89.979,89.924,11.12050175]
[1772681503325,1.55346394,89.979,89.913,11.12186224]
[1772681504848,1.55346394,89.977,89.907,3.69383402]
[1772681507339,1.55346394,89.975,89.911,3.69383402]
[1772681507530,1.55346394,89.969,89.908,11.12248075]
[1772681508532,1.55346394,89.959,89.908,11.12248075]
[1772681509560,9.14191866,89.96,89.902,11.12317561]
[1772681509561,1.55346394,89.957,89.902,11.12317561]
[1772681512437,1.55346394,89.955,89.902,11.12317561]
[1772681513739,1.55346394,89.949,89.894,11.12416759]
[1772681513947,1.55346394,89.949,89.897,11.12377856]
[1772681514839,1.55346394,89.947,89.897,11.12377856]
[1772681515849,1.55346394,89.947,89.9,18.1543234]
[1772681516347,1.55346394,89.947,89.9,7.03089577]
[1772681516943,1.55346394,89.945,89.9,7.03089577]
[1772681518545,1.55346394,89.945,89.901,11.12334679]
[1772681518932,1.55346394,89.943,89.901,11.12334679]
[1772681521041,1.55346394,89.941,89.901,11.12334679]
[1772681521458,1.55346394,89.948,89.902,0.28432314]
[1772681522066,11.11692099,89.953,89.902,0.28432314]
[1772681522244,1.55346394,89.96,89.905,0.28432314]
[1772681522438,4.82477569,90.02,89.905,0.28432314]
[1772681522439,11.11483416,89.97,89.905,0.28432314]
[1772681522756,11.11483416,89.97,89.909,0.28432314]
[1772681522957,11.11483416,89.97,89.909,1.39655884]
[1772681523258,12.6682981,89.97,89.911,0.28432314]
[1772681524259,1.55346394,89.969,89.911,0.28432314]
[1772681525635,1.55346394,89.967,89.916,0.28432314]
[1772681528062,1.55346394,89.965,89.92,3.69383402]
[1772681529747,11.11531022,89.966,89.921,39.20737781]
[1772681530756,1.55346394,89.965,89.921,39.20737781]
[1772681531953,1.55346394,89.963,89.921,11.12087276]
[1772681532751,38.90445066,89.964,89.904,11.12297561]
[1772681532752,1.55346394,89.959,89.904,11.12297561]
[1772681534558,1.55346394,89.957,89.904,11.12297561]
[1772681536775,1.55346394,89.955,89.904,11.12297561]
[1772681538471,1.55346394,89.955,89.899,11.12347473]
[1772681538773,1.55346394,89.955,89.876,104.4]
[1772681538774,1.55346394,89.939,89.884,11.12536557]
[1772681538969,1.55346394,89.939,89.873,3.69383402]
[1772681539469,1.55346394,89.939,89.881,3.69383402]
[1772681541258,1.55346394,89.937,89.882,11.12569813]
[1772681544378,1.55346394,89.937,89.868,10.9415832]
[1772681544379,1.55346394,89.929,89.872,3.69383402]
[1772681547479,1.55346394,89.927,89.873,38.94384296]
[1772681549573,1.55346394,89.925,89.869,11.12730752]
[1772681551280,1.55346394,89.925,89.869,38.94557633]
[1772681552178,1.55346394,89.923,89.869,38.94557633]
[1772681552678,1.55346394,89.923,89.869,11.12730752]
[1772681553070,94.52426492,89.924,89.868,10.9415832]
[1772681553071,1.55346394,89.922,89.868,10.9415832]
[1772681553273,1.55346394,89.919,89.869,11.12730752]
[1772681554280,1.55346394,89.917,89.869,38.94557633]
[1772681556175,1.55346394,89.915,89.869,38.94557633]
[1772681558585,1.55346394,89.913,89.869,38.94557633]
[1772681558965,55.59323541,89.939,89.871,1.50089804]
[1772681559773,94.50850019,89.939,89.871,1.50089804]
[1772681560685,38.91526478,89.939,89.873,1.5016845]
[1772681561085,11.11819215,89.943,89.89,0.28432314]
[1772681561290,11.11819215,89.943,89.893,1.50244701]
[1772681562086,12.60501933,89.943,89.893,1.50244701]
[1772681562278,1.48682718,89.942,89.893,1.50244701]
[1772681562680,11.11839983,89.941,89.895,1.50240711]
[1772681563989,1.48682718,89.959,89.898,1.78659928]
[1772681564167,1.48682718,89.958,89.898,1.78659928]
[1772681564578,11.11617514,89.959,89.903,1.50227614]
[1772681564775,11.11617514,89.959,89.913,1.50227614]
[1772681565188,1.48682718,89.958,89.9,38.93214682]
[1772681565373,1.48682718,89.958,89.844,104.4]
[1772681565374,1.48682718,89.949,89.872,1.50220789]
[1772681565574,1.48682718,89.949,89.878,1.50220789]
[1772681565780,1.48682718,89.949,89.882,1.50220789]
[1772681566994,1.48682718,89.947,89.884,1.50207572]
[1772681568796,11.11778178,89.946,89.893,38.93517848]
[1772681568981,1.47167996,89.945,89.894,1.38255109]
[1772681569801,1.47167996,89.943,89.896,1.38255109]
[1772681571793,11.11802899,89.944,89.896,1.38255109]
[1772681571996,1.47167996,89.967,89.897,38.93344604]
[1772681572200,1.47167996,89.967,89.898,1.38255109]
[1772681573604,1.47167996,89.967,89.901,1.66687423]
[1772681574310,1.47167996,89.967,89.906,1.66687423]
[1772681574601,11.11531022,89.966,89.923,1.38255109]
[1772681574797,1.47167996,89.965,89.923,1.38255109]
[1772681575408,3.41923802,90.0,89.923,1.38255109]
[1772681575409,1.47167996,89.975,89.923,1.38255109]
[1772681575594,11.11456897,89.972,89.923,1.38255109]
[1772681575901,1.47167996,89.971,89.923,1.38255109]
[1772681576105,1.47167996,89.969,89.925,1.38255109]
[1772681577184,14.57592075,89.973,89.928,0.28432314]
[1772681577385,14.57592075,89.973,89.933,1.38255109]
[1772681577788,13.10424079,89.973,89.933,1.38255109]
[1772681577984,1.47167996,89.972,89.933,1.38255109]
[1772681578590,1.47167996,89.971,89.935,1.38255109]
[1772681580213,13.10424079,89.973,89.935,1.38255109]
[1772681580606,13.10424079,89.973,89.943,1.38255109]
[1772681580810,11.60374175,89.973,89.94,0.28432314]
[1772681582407,1.47167996,89.987,89.94,0.28432314]
[1772681582813,1.47167996,89.987,89.942,0.28432314]
[1772681584102,1.52698149,89.985,89.942,0.28432314]
[1772681584811,1.52698149,89.983,89.943,38.91353411]
[1772681585811,1.52698149,90.005,89.944,0.28432314]
[1772681586020,1.52698149,90.004,89.944,0.28432314]
[1772681587836,1.52698149,90.004,89.949,0.28432314]
[1772681587837,1.52698149,90.002,89.949,0.28432314]
[1772681588698,1.52698149,90.002,89.945,11.11790538]
[1772681588902,1.52698149,90.002,89.945,38.91266884]
[1772681589416,1.52698149,90.002,89.946,0.28432314]
[1772681589595,1.52698149,90.0,89.948,0.28432314]
[1772681590796,1.52698149,90.0,89.947,38.91180361]
[1772681591796,1.52698149,89.998,89.938,0.28432314]
[1772681594223,1.52698149,89.996,89.942,3.69383402]
[1772681595128,1.52698149,89.996,89.943,0.28432314]
[1772681595620,1.52698149,90.016,89.943,0.28432314]
[1772681595802,1.52698149,90.016,89.945,0.28432314]
[1772681595803,1.52698149,90.015,89.945,0.28432314]
[1772681596003,1.52698149,90.015,89.947,0.28432314]
[1772681596204,1.52698149,90.013,89.951,0.28432314]
[1772681598314,1.52698149,90.011,89.952,11.11704019]
[1772681599325,1.52698149,90.009,89.943,11.1181526]
[1772681601331,1.52698149,90.007,89.942,3.69383402]
[1772681604531,1.52698149,90.005,89.943,38.91353411]
[1772681606027,1.52698149,90.003,89.943,27.79538151]
[1772681606209,1.52698149,90.003,89.941,3.69383402]
[1772681606607,1.52698149,89.999,89.941,3.69383402]
[1772681606924,1.52698149,89.999,89.938,11.1187707]
[1772681609330,1.52698149,89.997,89.927,3.97815716]
[1772681612234,1.52698149,89.995,89.931,3.69383402]
[1772681612433,1.52698149,89.979,89.91,30.0]
[1772681612635,1.52698149,89.979,89.911,11.12210964]
[1772681613837,1.52698149,89.977,89.905,0.02024493]
[1772681615042,1.52698149,89.975,89.905,0.02024493]
[1772681616540,1.52698149,89.973,89.905,0.02024493]
[1772681617855,1.52698149,89.973,89.903,38.93084769]
[1772681618537,1.52698149,89.971,89.902,0.02447263]
[1772681619038,1.52698149,89.969,89.894,0.02528563]
[1772681619627,1.52698149,89.959,89.894,0.02528563]
[1772681620841,1.52698149,89.957,89.894,0.02528563]
[1772681621040,1.52698149,89.957,89.89,0.02688507]
[1772681622941,1.52698149,89.955,89.89,0.02688507]
[1772681627142,1.52698149,89.953,89.893,0.03160238]
[1772681628244,4.26601171,89.99,89.893,0.03160238]
[1772681628245,11.11333377,89.982,89.896,3.69383402]
[1772681628445,1.5434467,89.991,89.913,0.28432314]
[1772681628953,1.5434467,89.991,89.912,3.69383402]
[1772681628954,1.5434467,89.991,89.915,0.28432314]
[1772681629334,1.5434467,89.989,89.92,0.28432314]
[1772681629948,1.5434467,89.989,89.919,3.69383402]
[1772681631338,1.5434467,89.987,89.92,38.92348754]
[1772681633255,1.5434467,89.985,89.914,3.69383402]
[1772681635059,1.5434467,89.985,89.915,0.28432314]
[1772681635237,5.80144442,90.014,89.911,94.53793194]
[1772681635238,1.5434467,89.99,89.923,0.14216157]
[1772681635443,1.5434467,89.99,89.925,0.28432314]
[1772681635842,1.5434467,89.99,89.927,0.28432314]
[1772681636765,1.5434467,89.99,89.926,1.11202544]
[1772681636954,1.5434467,89.99,89.922,0.28432314]
[1772681637156,1.5434467,89.99,89.926,3.69383402]
[1772681637336,1.5434467,89.988,89.927,38.9204577]
[1772681637535,1.5434467,89.988,89.928,0.28432314]
[1772681638358,1.5434467,90.009,89.932,3.69383402]
[1772681638653,1.5434467,90.009,89.935,0.28432314]
[1772681639450,1.5434467,90.007,89.937,0.28432314]
[1772681639634,1.5434467,90.007,89.937,1.39621257]
[1772681639831,1.5434467,90.007,89.937,0.28432314]
[1772681640247,38.8854324,90.008,89.936,11.11901796]
[1772681640248,1.5434467,89.999,89.936,11.11901796]
[1772681641676,1.5434467,89.997,89.932,11.11951252]
[1772681644143,1.5434467,89.989,89.932,11.11951252]
[1772681644546,1.5434467,89.979,89.931,7.1739125]
[1772681646071,1.5434467,89.977,89.931,7.1739125]
[1772681646366,3.69383402,89.975,89.931,7.1739125]
[1772681646548,1.5434467,89.969,89.931,7.1739125]
[1772681647894,1.5434467,89.957,89.894,27.81034114]
[1772681649560,1.5434467,89.957,89.895,0.28432314]
[1772681650064,11.11654586,89.956,89.897,0.28432314]
[1772681651071,1.5434467,89.955,89.897,0.28432314]
[1772681652472,11.11600138,89.961,89.902,0.28432314]
[1772681652670,11.11548208,89.965,89.902,0.28432314]
[1772681653170,1.5434467,89.968,89.902,0.28432314]
[1772681653357,11.11419838,89.975,89.902,0.28432314]
[1772681653558,1.5434467,89.974,89.902,0.28432314]
[1772681654774,1.5434467,89.972,89.906,0.14216157]
[1772681655283,1.5434467,89.972,89.911,0.14216157]
[1772681655575,1.5434467,89.972,89.91,3.69383402]
[1772681655772,11.11469251,89.971,89.91,3.69383402]
[1772681655973,1.5434467,89.97,89.911,38.92738374]
[1772681656556,1.5434467,89.97,89.912,0.14216157]
[1772681657273,1.5434467,89.97,89.911,38.92738374]
[1772681657477,38.90142379,89.971,89.889,50.0]
[1772681657478,1.5434467,89.949,89.89,11.12470797]
[1772681657659,1.5434467,89.949,89.891,30.0]
[1772681657867,1.5434467,89.947,89.892,11.12446046]
[1772681658175,1.5434467,89.947,89.892,38.93561161]
[1772681658580,1.5434467,89.947,89.886,11.12512201]
[1772681659959,1.54812588,89.945,89.883,27.81393589]
[1772681662182,38.91310147,89.944,89.883,27.81393589]
[1772681662372,1.54812588,89.943,89.883,27.81393589]
[1772681663985,1.54812588,89.943,89.883,27.83393589]
[1772681664886,1.54812588,89.941,89.883,0.02]
[1772681665089,1.54812588,89.939,89.883,0.02]
[1772681666083,1.54812588,89.939,89.883,0.04072849]
[1772681667491,1.5434467,89.937,89.884,0.0217384]
[1772681669592,1.5434467,89.935,89.884,0.0217384]
[1772681672193,11.11926523,89.934,89.884,0.0217384]
[1772681672378,1.5434467,89.933,89.884,0.0217384]
[1772681674900,1.5434467,89.941,89.885,0.02545002]
[1772681677077,1.5434467,89.939,89.886,0.02630093]
[1772681678700,1.5434467,89.937,89.886,0.02630093]
[1772681681078,1.5434467,89.935,89.886,0.02630093]
[1772681684395,1.5434467,89.933,89.883,11.14557435]
[1772681685199,1.5434467,89.933,89.884,0.02922874]
[1772681687404,1.5434467,89.931,89.884,0.02922874]
[1772681688597,1.5434467,89.929,89.884,0.02922874]
[1772681690208,1.5434467,89.929,89.853,3.69383402]
[1772681690209,1.5434467,89.909,89.843,0.2764479]
[1772681690508,1.5434467,89.909,89.846,1.407901]
[1772681690689,1.40430289,89.904,89.848,1.407901]
[1772681692398,1.40430289,89.904,89.85,1.407901]
[1772681692604,1.40430289,89.902,89.854,1.407901]
[1772681693894,11.12261038,89.907,89.854,1.407901]
[1772681694095,1.40430289,89.906,89.854,1.407901]
[1772681694807,1.40430289,89.904,89.856,1.407901]
[1772681696210,1.40430289,89.902,89.847,1.407901]
[1772681697418,38.93084769,89.903,89.847,1.407901]
[1772681697419,1.40430289,89.899,89.847,1.407901]
[1772681699090,1.40430289,89.897,89.849,1.407901]
[1772681700317,11.12324008,89.902,89.853,1.407901]
[1772681700515,1.40430289,89.901,89.853,1.407901]
[1772681701304,1.40430289,89.899,89.855,1.407901]
[1772681701989,1.40430289,89.944,89.863,1.407901]
[1772681702420,1.40430289,89.939,89.863,1.407901]
[1772681702603,1.40430289,89.929,89.863,1.407901]
[1772681702914,1.40430289,89.909,89.854,11.12916509]
[1772681703292,1.40430289,89.907,89.852,1.407901]
[1772681704521,1.40430289,89.907,89.846,11.13015604]
[1772681704692,94.54108643,89.908,89.846,11.13015604]
[1772681704693,1.40430289,89.899,89.846,11.13015604]
[1772681705813,1.40430289,89.897,89.846,11.13015604]
[1772681706016,1.40430289,89.897,89.847,1.407901]
[1772681706703,1.40430289,89.897,89.846,11.13015604]
[1772681707489,1.40430289,89.897,89.847,1.407901]
[1772681707938,1.40430289,89.895,89.849,1.407901]
[1772681710514,11.12421296,89.894,89.85,11.12966054]
[1772681710713,1.40430289,89.893,89.85,11.12966054]
[1772681711213,1.40430289,89.889,89.845,1.407901]
[1772681711413,1.40430289,89.903,89.845,1.407901]
[1772681712615,1.40430289,89.903,89.855,1.407901]
[1772681713014,1.40430289,89.901,89.855,1.407901]
[1772681714821,1.40430289,89.922,89.857,1.407901]
[1772681716716,1.40430289,89.92,89.86,1.69222414]
[1772681720322,1.44804296,89.918,89.863,1.5286021]
[1772681721118,1.44804296,89.918,89.873,1.5286021]
[1772681722217,1.44804296,89.918,89.861,38.94904351]
[1772681722423,1.44804296,89.916,89.849,0.28432314]
[1772681722596,1.44804296,89.916,89.846,38.95554615]
[1772681722597,1.44804296,89.916,89.852,1.5286021]
[1772681723114,1.44804296,89.916,89.846,38.95554615]
[1772681723115,1.44804296,89.916,89.862,1.5286021]
[1772681724119,1.44804296,89.916,89.864,1.5286021]
[1772681724325,1.44804296,89.916,89.874,1.5286021]
[1772681724629,1.44804296,89.914,89.851,1.5286021]
[1772681724929,1.44804296,89.909,89.85,38.9538119]
[1772681725598,1.44804296,89.909,89.851,1.5286021]
[1772681726901,1.56257537,89.907,89.852,11.12941281]
[1772681727102,1.56257537,89.907,89.852,38.95294484]
[1772681727829,1.56257537,89.907,89.853,1.47563155]
[1772681729622,1.56257537,89.905,89.855,1.47563155]
[1772681730299,3.42185883,90.0,89.861,0.28432314]
[1772681730517,44.43770241,90.014,89.884,1.61779312]
[1772681730518,27.78196452,89.987,89.884,1.61779312]
[1772681730702,11.11393257,89.978,89.908,1.47563155]
[1772681730911,11.11393257,89.978,89.916,1.47563155]
[1772681731116,38.89850213,89.978,89.926,1.47563155]
[1772681732003,38.88932098,89.999,89.928,1.47563155]
[1772681732224,1.56257537,89.998,89.928,1.47563155]
[1772681733842,1.56257537,89.979,89.911,1.47563155]
[1772681734011,3.69383402,89.996,89.907,3.69383402]
[1772681734012,1.56257537,89.969,89.907,3.69383402]
[1772681734202,3.42185883,89.97,89.904,11.12297561]